fUST/lending_fUST_20250811
["ID","MTS","AMOUNT","RATE_DAILY","PERIOD"]
[378601892,1754922647816,-460.0,0.00019452,2]
[378601893,1754922647827,-460.0,0.00019452,2]
[378601894,1754922647838,-460.0,0.00019452,2]
[378601895,1754922647849,-529.95,0.00019452,2]
[378601896,1754922647860,-467.5314501,0.00019452,2]
[378601897,1754922647873,-460.0,0.00019452,2]
[378601898,1754922647884,-460.0,0.00019452,2]
[378601899,1754922647895,-460.0,0.00019452,2]
[378601900,1754922647906,-460.0,0.00019452,2]
[378601901,1754922647917,-460.0,0.00019452,2]
[378601902,1754922647930,-460.0,0.00019452,2]
[378601903,1754922647942,-704.95,0.00019452,2]
[378601904,1754922647954,-460.0,0.00019452,2]
[378601905,1754922647965,-460.0,0.00019452,2]
[378601906,1754922647977,-460.0,0.00019452,2]
[378601907,1754922647997,-460.0,0.00019452,2]
[378601908,1754922648011,-460.0,0.00019452,2]
[378601909,1754922648022,-534.11,0.00019452,2]
[378601910,1754922648033,-460.0,0.00019452,2]
[378601911,1754922648044,-460.0,0.00019452,2]
[378601912,1754922648055,-460.0,0.00019452,2]
[378601913,1754922648066,-819.72,0.00019452,2]
[378601914,1754922648077,-460.0,0.00019452,2]
[378601915,1754922648088,-221.76112064,0.00019452,2]
[378601916,1754922648099,-460.0,0.00019452,2]
[378601917,1754922648111,-185.87663612,0.00019452,2]
[378601918,1754922648123,-870.21,0.00019452,2]
[378601919,1754922648134,-460.0,0.00019452,2]
[378601920,1754922648145,-460.0,0.00019452,2]
[378601921,1754922648156,-921.79,0.00019452,2]
[378601922,1754922648167,-460.0,0.00019452,2]
[378601923,1754922648181,-460.0,0.00019452,2]
[378601924,1754922648193,-460.0,0.00019452,2]
[378601925,1754922648205,-460.0,0.00019452,2]
[378601926,1754922648216,-602.57,0.00019452,2]
[378601927,1754922648227,-1778.7,0.00019452,2]
[378601928,1754922648239,-460.0,0.00019452,2]
[378601929,1754922648250,-460.0,0.00019452,2]
[378601930,1754922648261,-717.33,0.00019452,2]
[378601931,1754922648272,-460.0,0.00019452,2]
[378601932,1754922648283,-801.57,0.00019452,2]
[378601933,1754922648295,-723.43,0.00019452,2]
[378601934,1754922648306,-460.0,0.00019452,2]
[378601935,1754922648317,-460.0,0.00019452,2]
[378601936,1754922648329,-460.0,0.00019452,2]
[378601937,1754922648340,-460.0,0.00019452,2]
[378601938,1754922648350,-460.0,0.00019452,2]
[378601939,1754922648363,-460.0,0.00019452,2]
[378601940,1754922648378,-460.0,0.00019452,2]
[378601941,1754922648389,-460.0,0.00019452,2]
[378601942,1754922648400,-460.0,0.00019452,2]
[378601943,1754922648411,-460.0,0.00019452,2]
[378601944,1754922648425,-460.0,0.00019452,2]
[378601945,1754922648436,-465.71822067,0.00019452,2]
[378601946,1754922648447,-460.0,0.00019452,2]
[378601947,1754922648458,-460.0,0.00019452,2]
[378601948,1754922648469,-460.0,0.00019452,2]
[378601949,1754922648480,-460.0,0.00019452,2]
[378601950,1754922648491,-3501.28,0.00019452,2]
[378601951,1754922648503,-555.6,0.00019452,2]
[378601952,1754922648514,-460.0,0.00019452,2]
[378601953,1754922648525,-564.9,0.00019452,2]
[378601954,1754922648536,-460.0,0.00019452,2]
[378601955,1754922648547,-460.0,0.00019452,2]
[378601956,1754922648558,-460.0,0.00019452,2]
[378601957,1754922648569,-631.1,0.00019452,2]
[378601958,1754922648580,-460.0,0.00019452,2]
[378601959,1754922648591,-1858.57,0.00019452,2]
[378601960,1754922648603,-460.0,0.00019452,2]
[378601961,1754922648614,-1420.35,0.00019452,2]
[378601962,1754922648624,-460.0,0.00019452,2]
[378601963,1754922648635,-1095.74,0.00019452,2]
[378601964,1754922648647,-460.0,0.00019452,2]
[378601965,1754922648658,-460.0,0.00019452,2]
[378601966,1754922648668,-460.0,0.00019452,2]
[378601967,1754922648683,-868.39,0.00019452,2]
[378601968,1754922648694,-460.0,0.00019452,2]
[378601969,1754922648718,-1037.02,0.00019452,2]
[378601970,1754922648733,-460.0,0.00019452,2]
[378601971,1754922648748,-460.0,0.00019452,2]
[378601972,1754922648762,-471.41390067,0.00019452,2]
[378601973,1754922648776,-1180.88,0.00019452,2]
[378601974,1754922648789,-560.75,0.00019452,2]
[378601975,1754922648802,-460.0,0.00019452,2]
[378601976,1754922648815,-460.0,0.00019452,2]
[378601977,1754922648828,-460.0,0.00019452,2]
[378601978,1754922648841,-1000.04,0.00019452,2]
[378601979,1754922648853,-460.0,0.00019452,2]
[378601980,1754922648865,-460.0,0.00019452,2]
[378601981,1754922648877,-460.0,0.00019452,2]
[378601982,1754922648889,-460.0,0.00019452,2]
[378601983,1754922648901,-1801.38,0.00019452,2]
[378601984,1754922648912,-4884.95,0.00019452,2]
[378601986,1754922648924,-460.0,0.00019452,2]
[378601989,1754922648936,-460.0,0.00019452,2]
[378601991,1754922648948,-460.0,0.00019452,2]
[378601992,1754922648959,-460.0,0.00019452,2]
[378601993,1754922648971,-460.0,0.00019452,2]
[378601994,1754922648983,-512.32,0.00019452,2]
[378601995,1754922648995,-460.0,0.00019452,2]
[378601996,1754922649007,-460.0,0.00019452,2]
[378601997,1754922649019,-1000.0,0.00019452,2]
[378601998,1754922649031,-460.0,0.00019452,2]
[378601999,1754922649043,-460.0,0.00019452,2]
[378602000,1754922649055,-460.0,0.00019452,2]
[378602001,1754922649067,-460.0,0.00019452,2]
[378602002,1754922649078,-460.0,0.00019452,2]
[378602003,1754922649091,-460.0,0.00019452,2]
[378602004,1754922649102,-460.0,0.00019452,2]
[378602005,1754922649113,-460.0,0.00019452,2]
[378602006,1754922649124,-1129.43,0.00019452,2]
[378602007,1754922649135,-500.0,0.00019452,2]
[378602008,1754922649146,-460.0,0.00019452,2]
[378602009,1754922649158,-460.0,0.00019452,2]
[378602010,1754922649169,-460.0,0.00019452,2]
[378602011,1754922649181,-460.0,0.00019452,2]
[378602012,1754922649193,-460.0,0.00019452,2]
[378602013,1754922649204,-849.84,0.00019452,2]
[378602014,1754922649215,-460.0,0.00019452,2]
[378602015,1754922649226,-460.0,0.00019452,2]
[378602016,1754922649238,-460.0,0.00019452,2]
[378602017,1754922649249,-3117.96,0.00019452,2]
[378602018,1754922649261,-460.0,0.00019452,2]
[378602019,1754922649272,-460.0,0.00019452,2]
[378602020,1754922649284,-460.0,0.00019452,2]
[378602021,1754922649300,-863.64,0.00019452,2]
[378602022,1754922649691,-460.0,0.00019452,2]
[378602023,1754922649719,-462.07793739,0.00019452,2]
[378602025,1754922649733,-460.0,0.00019452,2]
[378602026,1754922649743,-460.0,0.00019452,2]
[378602027,1754922649752,-460.0,0.00019452,2]
[378602028,1754922649762,-2035.34,0.00019452,2]
[378602029,1754922649771,-460.0,0.00019452,2]
[378602030,1754922649782,-460.0,0.00019452,2]
[378602031,1754922649792,-546.66,0.00019452,2]
[378602032,1754922649802,-460.0,0.00019452,2]
[378602033,1754922649812,-460.0,0.00019452,2]
[378602034,1754922649823,-534.49,0.00019452,2]
[378602035,1754922649832,-460.0,0.00019452,2]
[378602036,1754922649842,-472.99,0.00019452,2]
[378602037,1754922649851,-460.0,0.00019452,2]
[378602039,1754922649861,-460.0,0.00019452,2]
[378602040,1754922649871,-460.0,0.00019452,2]
[378602042,1754922649880,-727.71,0.00019452,2]
[378602043,1754922649890,-460.0,0.00019452,2]
[378602044,1754922649899,-460.0,0.00019452,2]
[378602045,1754922649908,-460.0,0.00019452,2]
[378602046,1754922649917,-460.0,0.00019452,2]
[378602047,1754922649928,-531.28,0.00019452,2]
[378602048,1754922649938,-1133.81,0.00019452,2]
[378602049,1754922649947,-2303.64,0.00019452,2]
[378602050,1754922649956,-460.0,0.00019452,2]
[378602051,1754922649966,-460.0,0.00019452,2]
[378602052,1754922649975,-460.0,0.00019452,2]
[378602053,1754922649984,-630.91,0.00019452,2]
[378602054,1754922649994,-469.7,0.00019452,2]
[378602055,1754922650004,-649.5,0.00019452,2]
[378602056,1754922650014,-460.0,0.00019452,2]
[378602057,1754922650023,-460.0,0.00019452,2]
[378602058,1754922650033,-1189.72,0.00019452,2]
[378602059,1754922650042,-825.64,0.00019452,2]
[378602060,1754922650051,-460.0,0.00019452,2]
[378602061,1754922650061,-460.0,0.00019452,2]
[378602062,1754922650071,-453.09686162,0.00019452,2]
[378602063,1754922650080,-3401.03,0.00019452,2]
[378602064,1754922650090,-2019.77,0.00019452,2]
[378602065,1754922650100,-460.0,0.00019452,2]
[378602066,1754922650109,-481.23,0.00019452,2]
[378602067,1754922650119,-956.58,0.00019452,2]
[378602068,1754922650128,-460.0,0.00019452,2]
[378602069,1754922650138,-623.23,0.00019452,2]
[378602070,1754922650147,-632.5,0.00019452,2]
[378602071,1754922650157,-460.0,0.00019452,2]
[378602072,1754922650166,-460.0,0.00019452,2]
[378602073,1754922650177,-460.0,0.00019452,2]
[378602074,1754922650186,-201.65488289,0.00019452,2]
[378602075,1754922650196,-460.0,0.00019452,2]
[378602076,1754922650207,-4453.58,0.00019452,2]
[378602077,1754922650217,-632.63,0.00019452,2]
[378602078,1754922650227,-460.0,0.00019452,2]
[378602079,1754922650237,-460.0,0.00019452,2]
[378602080,1754922650247,-730.1,0.00019452,2]
[378602081,1754922650256,-1264.7,0.00019452,2]
[378602082,1754922650266,-460.0,0.00019452,2]
[378602083,1754922650275,-646.79,0.00019452,2]
[378602084,1754922650285,-1072.58,0.00019452,2]
[378602085,1754922650294,-460.0,0.00019452,2]
[378602086,1754922650304,-151.0,0.00019452,2]
[378602087,1754922650314,-889.23,0.00019452,2]
[378602088,1754922650323,-944.81,0.00019452,2]
[378602089,1754922650332,-151.0,0.00019452,2]
[378602090,1754922650341,-3645.41,0.00019452,2]
[378602091,1754922650351,-699.37,0.00019452,2]
[378602092,1754922650360,-151.0,0.00019452,2]
[378602093,1754922650370,-151.0,0.00019452,2]
[378602094,1754922650383,-2039.76,0.00019452,2]
[378602095,1754922650392,-460.0,0.00019452,2]
[378602096,1754922650402,-1846.32,0.00019452,2]
[378602097,1754922650412,-615.14,0.00019452,2]
[378602098,1754922650422,-198.0,0.00019452,2]
[378602099,1754922650431,-154.51495508,0.00019452,2]
[378602100,1754922650441,-199.73992829,0.00019452,2]
[378602101,1754922650450,-460.0,0.00019452,2]
[378602102,1754922650461,-460.0,0.00019452,2]
[378602103,1754922650470,-460.0,0.00019452,2]
[378602104,1754922650480,-460.0,0.00019452,2]
[378602105,1754922650490,-739.09,0.00019452,2]
[378602106,1754922650499,-151.0,0.00019452,2]
[378602107,1754922650509,-460.0,0.00019452,2]
[378602108,1754922650518,-151.0,0.00019452,2]
[378602109,1754922650528,-1175.79,0.00019452,2]
[378602110,1754922650537,-607.4,0.00019452,2]
[378602111,1754922650546,-460.0,0.00019452,2]
[378602112,1754922650555,-879.17,0.00019452,2]
[378602113,1754922650564,-151.0,0.00019452,2]
[378602114,1754922650574,-4446.05,0.00019452,2]
[378602115,1754922650583,-151.0,0.00019452,2]
[378602116,1754922650592,-500.0,0.00019452,2]
[378602117,1754922650601,-632.42,0.00019452,2]
[378602118,1754922650610,-500.0,0.00019452,2]
[378602119,1754922650620,-622.66,0.00019452,2]
[378602120,1754922650629,-950.15,0.00019452,2]
[378602121,1754922650638,-460.0,0.00019452,2]
[378602122,1754922650647,-3114.7,0.00019452,2]
[378602123,1754922650656,-492.05,0.00019452,2]
[378602124,1754922650665,-10521.44,0.00019452,2]
[378602125,1754922650675,-460.0,0.00019452,2]
[378602126,1754922650693,-460.0,0.00019452,2]
[378602127,1754922650704,-460.0,0.00019452,2]
[378602128,1754922650714,-1217.0,0.00019452,2]
[378602129,1754922650723,-349.67782124,0.00019452,2]
[378602130,1754922650733,-500.0,0.00019473,2]
[378602131,1754922650742,-500.0,0.00019473,2]
[378602132,1754922650752,-500.0,0.00019473,2]
[378602133,1754922650761,-613.81959935,0.00019473,2]
[378602135,1754922650770,-500.0,0.00019473,2]
[378602137,1754922650779,-500.0,0.00019473,2]
[378602139,1754922650789,-298.29828142,0.00019473,2]
[378602141,1754922650798,-500.0,0.00019511,2]
[378602143,1754922650808,-1000.0,0.00019521,2]
[378602144,1754922650818,-1000.0,0.00019521,2]
[378602146,1754922650827,-1000.0,0.00019521,2]
[378602148,1754922650837,-1000.0,0.00019521,2]
[378602150,1754922650846,-1004.04565905,0.00019521,2]
[378602152,1754922650856,-1000.0,0.00019521,2]
[378602154,1754922650865,-500.0,0.00019521,2]
[378602156,1754922650875,-1000.0,0.00019521,2]
[378602158,1754922650885,-866.59061769,0.00019521,2]
[378602160,1754922650894,-1000.0,0.00019521,2]
[378602162,1754922650904,-500.0,0.00019521,2]
[378602164,1754922650914,-389.23249397,0.00019521,2]
[378602166,1754922650923,-1000.0,0.00019521,2]
[378602168,1754922650934,-1000.0,0.00019521,2]
[378602170,1754922650943,-158.3190125,0.00019521,2]
[378602172,1754922650953,-500.0,0.00019521,2]
[378602174,1754922650962,-617.39529896,0.00019521,2]
[378602176,1754922650972,-759.18015538,0.00019521,2]
[378602178,1754922650982,-1000.0,0.00019521,2]
[378602181,1754922650992,-2413.33803698,0.00019523,2]
[378602183,1754922651001,-160.0,0.00019563,2]
[378602185,1754922651010,-160.0,0.00019563,2]
[378602187,1754922651021,-527.9539256,0.00019563,2]
[378602188,1754922651030,-160.0,0.00019575,2]
[378602189,1754922651039,-160.0,0.00019575,2]
[378602190,1754922651049,-12671.21867243,0.00019575,2]
[378602191,1754922651058,-215.4905783,0.00019575,2]
[378602192,1754922651068,-231.9940742,0.00019575,2]
[378602193,1754922651077,-160.0,0.00019575,2]
[378602194,1754922651087,-461.69158338,0.00019575,2]
[378602195,1754922651097,-417.15472785,0.00019575,2]
[378602197,1754922651106,-843.18994796,0.00019575,2]
[378602199,1754922651116,-216.68257536,0.00019575,2]
[378602201,1754922651127,-160.0,0.00019575,2]
[378602203,1754922651137,-160.0,0.00019575,2]
[378602205,1754922651147,-160.0,0.0001958,2]
[378602207,1754922651156,-151.0,0.000196,2]
[378602209,1754922651167,-151.0,0.000196,2]
[378602211,1754922651177,-1545.43384651,0.00019626,2]
[378602213,1754922651187,-151.0,0.000197,2]
[378602215,1754922651197,-567.0,0.00019708,2]
[378602218,1754922651207,-1000.0,0.00019721,2]
[378602220,1754922651216,-1000.0,0.00019721,2]
[378602222,1754922651226,-1000.0,0.00019721,2]
[378602224,1754922651236,-504.57878206,0.00019721,2]
[378602225,1754922651246,-1000.0,0.00019721,2]
[378602226,1754922651256,-1006.02925898,0.00019721,2]
[378602227,1754922651266,-1000.0,0.00019721,2]
[378602228,1754922651276,-1000.0,0.00019721,2]
[378602229,1754922651286,-1000.0,0.00019721,2]
[378602230,1754922651296,-1000.0,0.00019721,2]
[378602231,1754922651306,-1000.0,0.00019721,2]
[378602232,1754922651316,-500.0,0.00019721,2]
[378602233,1754922651326,-1009.88242739,0.00019721,2]
[378602234,1754922651336,-500.0,0.00019721,2]
[378602235,1754922651346,-1000.0,0.00019721,2]
[378602236,1754922651356,-500.0,0.00019721,2]
[378602237,1754922651367,-500.0,0.00019721,2]
[378602238,1754922651379,-571.10111159,0.00019721,2]
[378602239,1754922651388,-1000.0,0.00019721,2]
[378602240,1754922651398,-1000.0,0.00019721,2]
[378602241,1754922651409,-1000.0,0.00019721,2]
[378602242,1754922651420,-500.0,0.00019721,2]
[378602243,1754922651430,-1000.0,0.00019721,2]
[378602244,1754922651440,-489.56413626,0.00019721,2]
[378602245,1754922651451,-150.2418856,0.00019721,2]
[378602246,1754922651462,-1000.0,0.00019721,2]
[378602247,1754922651472,-1000.0,0.00019721,2]
[378602248,1754922651482,-500.0,0.00019721,2]
[378602249,1754922651492,-473.66,0.00019721,2]
[378602250,1754922651504,-154.13560178,0.00019726,2]
[378602251,1754922651514,-198.76446647,0.00019726,2]
[378602252,1754922651524,-500.0,0.00019726,2]
[378602253,1754922651535,-151.0,0.00019726,2]
[378602254,1754922651544,-500.0,0.00019726,2]
[378602255,1754922651554,-500.0,0.00019726,2]
[378602256,1754922651564,-151.0,0.00019726,2]
[378602257,1754922651574,-151.29225427,0.00019726,2]
[378602258,1754922651584,-203.47137086,0.00019726,2]
[378602259,1754922651596,-151.0,0.00019726,2]
[378602260,1754922651606,-500.0,0.00019726,2]
[378602261,1754922651616,-500.0,0.00019726,2]
[378602262,1754922651626,-151.0,0.00019726,2]
[378602263,1754922651636,-151.0,0.00019726,2]
[378602264,1754922651646,-151.0,0.00019726,2]
[378602265,1754922651655,-151.0,0.00019726,2]
[378602266,1754922651665,-151.0,0.00019726,2]
[378602267,1754922651675,-500.0,0.00019726,2]
[378602268,1754922651685,-588.94623004,0.00019726,2]
[378602269,1754922651695,-151.0,0.00019726,2]
[378602270,1754922651705,-320.953654,0.00019726,2]
[378602271,1754922651715,-320.953654,0.00019726,2]
[378602272,1754922651724,-460.0,0.00019726,2]
[378602273,1754922651734,-460.0,0.00019726,2]
[378602274,1754922651744,-460.0,0.00019726,2]
[378602275,1754922651754,-460.0,0.00019726,2]
[378602276,1754922651764,-635.53,0.00019726,2]
[378602277,1754922651774,-460.0,0.00019726,2]
[378602278,1754922651784,-460.0,0.00019726,2]
[378602279,1754922651794,-513.91771714,0.00019726,2]
[378602280,1754922651803,-460.0,0.00019726,2]
[378602282,1754922651813,-296.346971,0.00019726,2]
[378602284,1754922651824,-460.0,0.00019726,2]
[378602286,1754922651833,-296.346971,0.00019726,2]
[378602288,1754922651843,-693.64,0.00019726,2]
[378602290,1754922651853,-460.0,0.00019726,2]
[378602292,1754922651863,-460.0,0.00019726,2]
[378602294,1754922651872,-460.0,0.00019726,2]
[378602296,1754922651882,-460.0,0.00019726,2]
[378602299,1754922651892,-460.0,0.00019726,2]
[378602301,1754922651901,-546.96241014,0.00019726,2]
[378602303,1754922651911,-460.0,0.00019726,2]
[378602305,1754922651921,-460.0,0.00019726,2]
[378602307,1754922651931,-460.0,0.00019726,2]
[378602309,1754922651940,-460.0,0.00019726,2]
[378602311,1754922651951,-460.0,0.00019726,2]
[378602313,1754922651960,-460.0,0.00019726,2]
[378602315,1754922651971,-460.0,0.00019726,2]
[378602317,1754922651980,-460.0,0.00019726,2]
[378602319,1754922651990,-460.0,0.00019726,2]
[378602321,1754922652000,-680.05,0.00019726,2]
[378602323,1754922652010,-460.0,0.00019726,2]
[378602325,1754922652020,-460.0,0.00019726,2]
[378602327,1754922652030,-532.77418421,0.00019726,2]
[378602329,1754922652040,-460.0,0.00019726,2]
[378602331,1754922652050,-460.0,0.00019726,2]
[378602333,1754922652061,-460.0,0.00019726,2]
[378602335,1754922652071,-500.0,0.00019726,2]
[378602338,1754922652081,-460.0,0.00019726,2]
[378602340,1754922652091,-460.0,0.00019726,2]
[378602342,1754922652101,-460.0,0.00019726,2]
[378602344,1754922652111,-460.0,0.00019726,2]
[378602346,1754922652120,-521.31434003,0.00019726,2]
[378602348,1754922652130,-460.0,0.00019726,2]
[378602350,1754922652139,-460.0,0.00019726,2]
[378602352,1754922652149,-460.0,0.00019726,2]
[378602354,1754922652159,-460.0,0.00019726,2]
[378602356,1754922652170,-460.0,0.00019726,2]
[378602358,1754922652180,-282.70749764,0.00019726,2]
[378602360,1754922652190,-400.89992964,0.00019726,2]
[378602443,1754922652969,-271.70759998,0.00019178,2]
[378602446,1754922652981,-188.29240002,0.00019178,2]
[378602448,1754922652991,-460.0,0.00019178,2]
[378602450,1754922653001,-460.0,0.00019178,2]
[378602452,1754922653010,-460.0,0.00019452,2]
[378602454,1754922653020,-460.0,0.00019726,2]
[378602456,1754922653030,-460.0,0.00019726,2]
[378602458,1754922653039,-460.0,0.00019726,2]
[378602460,1754922653048,-460.0,0.00019726,2]
[378602462,1754922653058,-188.70759998,0.00019726,2]
[378602570,1754922654071,-1.08113152,0.00019078,2]
[378602656,1754922655025,-1436.24338118,0.00019078,2]
[378602658,1754922655036,-992.82793587,0.00019078,2]
[378602660,1754922655045,-460.0,0.00019178,2]
[378602662,1754922655055,-460.0,0.00019178,2]
[378602664,1754922655064,-460.0,0.00019178,2]
[378602666,1754922655073,-464.10291911,0.00019178,2]
[378602668,1754922655082,-460.0,0.00019178,2]
[378602670,1754922655091,-460.0,0.00019178,2]
[378602672,1754922655101,-460.0,0.00019452,2]
[378602674,1754922655110,-460.0,0.00019452,2]
[378602676,1754922655119,-405.25897662,0.00019452,2]
[378603836,1754922853395,1421.88696407,0.00017864,2]
[378603837,1754922853420,230.92486393,0.00017864,2]
[378603839,1754922855630,-202.33595677,0.0001872,2]
[378603840,1754922855652,-78.66404323,0.00018764,2]
[378603841,1754922901140,4769.07513607,0.0001799,2]
[378603842,1754922901169,5000.0,0.0001799,2]
[378603843,1754922901194,2456.53802933,0.0001799,2]
[378603850,1754922911696,2543.46197067,0.00017814,2]
[378603851,1754922911719,5000.0,0.00017814,2]
[378603852,1754922911744,2456.53802933,0.00017814,2]
[378603854,1754922925636,-1964.01186945,0.00018763,2]
[378603855,1754922925658,-93.52048686,0.00018764,2]
[378603856,1754922925687,-1200.0,0.00018771,2]
[378603857,1754922925708,-157.0,0.00018772,2]
[378603858,1754922925730,-300.0,0.00018772,2]
[378603859,1754922925751,-300.0,0.00018772,2]
[378603860,1754922925771,-300.0,0.00018772,2]
[378603861,1754922925792,-300.0,0.00018772,2]
[378603862,1754922925813,-1568.46764369,0.00018773,2]
[378603867,1754923133519,-1606.0,0.00018762,2]
[378603868,1754923152524,2543.46197067,0.00017862,2]
[378603869,1754923152556,5000.0,0.00017862,2]
[378603870,1754923152591,5000.0,0.00017862,2]
[378603871,1754923152624,5000.0,0.00017862,2]
[378603872,1754923152663,5000.0,0.00017862,2]
[378603873,1754923152690,2356.53802933,0.00017862,2]
[378603877,1754923202121,-112.51038576,0.00018762,2]
[378603878,1754923202144,-1086.06947677,0.00018773,2]
[378603879,1754923202165,-896.42013747,0.00018773,2]
[378603882,1754923222152,1403.63802737,0.00018295,2]
[378603889,1754923335386,-1445.0,0.0001876,2]
[378603890,1754923351208,20333.0,0.00019,6]
[378603892,1754923401937,-58.69658754,0.0001876,2]
[378603893,1754923401960,-30.84017046,0.00018773,2]
[378603894,1754923401982,-673.463242,0.00018773,2]
[378603896,1754923412592,1000.4757246,0.00017864,2]
[378603897,1754923421530,239.3482187,0.00017855,2]
[378603898,1754923421555,5000.0,0.00017855,2]
[378603899,1754923421582,5000.0,0.00017855,2]
[378603900,1754923421612,5000.0,0.00017855,2]
[378603901,1754923421637,5000.0,0.00017855,2]
[378603902,1754923421663,5000.0,0.00017855,2]
[378603903,1754923421689,5000.0,0.00017855,2]
[378603904,1754923421712,5000.0,0.00017855,2]
[378603905,1754923421737,5000.0,0.00017855,2]
[378603906,1754923421762,5000.0,0.00017855,2]
[378603907,1754923421785,2450.7817104,0.00017855,2]
[378603913,1754923538141,-1315.73451408,0.00018755,2]
[378603914,1754923538162,-1200.0,0.00018772,2]
[378603915,1754923538182,-50.58307584,0.00018773,2]
[378603916,1754923538204,-833.715,0.00018773,2]
[378603917,1754923538225,-179.92388822,0.00018773,2]
[378603918,1754923538247,-666.04352186,0.00018773,2]
[378603921,1754923584578,1002.9121019,0.00017854,2]
[378603926,1754923717040,852.649684,0.00013699,2]
[378603928,1754923738421,-1143.0,0.00018752,2]
[378603930,1754923775063,693.6565037,0.00017857,2]
[378603931,1754923775088,132.7494103,0.00017857,2]
[378604521,1754923838501,-482.69754522,0.00018773,2]
[378604522,1754923838511,-170.12,0.00018843,3]
[378604523,1754923838521,-328.22646049,0.00018843,3]
[378604524,1754923838532,-182.13353951,0.00018843,3]
[378604525,1754923838542,-500.0,0.0001885,2]
[378604526,1754923838552,-161.10308367,0.0001885,2]
[378604527,1754923838561,-500.0,0.0001885,2]
[378604528,1754923838571,-500.0,0.0001885,2]
[378604529,1754923838580,-349.4863167,0.0001885,2]
[378604530,1754923838590,-500.0,0.0001885,2]
[378604531,1754923838600,-427.49616865,0.0001885,2]
[378604532,1754923838609,-584.224476,0.0001885,2]
[378604533,1754923838619,-500.0,0.0001885,2]
[378604534,1754923838629,-188.16354887,0.0001885,2]
[378604535,1754923838639,-500.0,0.0001885,2]
[378604536,1754923838649,-500.0,0.0001885,2]
[378604537,1754923838662,-500.0,0.0001885,2]
[378604538,1754923838672,-500.0,0.0001885,2]
[378604539,1754923838681,-500.0,0.0001885,2]
[378604540,1754923838691,-493.95815661,0.0001885,2]
[378604541,1754923838701,-159.65819643,0.0001885,2]
[378604542,1754923838711,-500.0,0.0001885,2]
[378604543,1754923838720,-500.0,0.0001885,2]
[378604544,1754923838730,-618.51823042,0.0001885,2]
[378604545,1754923838743,-500.0,0.0001885,2]
[378604546,1754923838752,-500.0,0.0001885,2]
[378604547,1754923838762,-500.0,0.0001885,2]
[378604548,1754923838771,-500.0,0.0001885,2]
[378604549,1754923838780,-500.0,0.0001885,2]
[378604550,1754923838789,-500.0,0.0001885,2]
[378604551,1754923838798,-500.0,0.0001885,2]
[378604552,1754923838808,-500.0,0.0001885,2]
[378604553,1754923838817,-500.0,0.0001885,2]
[378604554,1754923838827,-500.0,0.0001885,2]
[378604555,1754923838835,-500.0,0.0001885,2]
[378604556,1754923838844,-500.0,0.0001885,2]
[378604557,1754923838853,-500.0,0.0001885,2]
[378604558,1754923838862,-500.0,0.0001885,2]
[378604559,1754923838871,-500.0,0.0001885,2]
[378604560,1754923838880,-500.0,0.0001885,2]
[378604561,1754923838889,-500.0,0.0001885,2]